[Event "Early-Titled-Tuesday-Blitz-April-23-2024"]
[Site "Chess.com"]
[Date "2024.04.23"]
[Round "8"]
[White "Mackster23"]
[Black "DamianoLew95"]
[Result "1-0"]
[WhiteElo "2595"]
[BlackElo "2773"]
[TimeControl "180+1"]
[EndTime "9:32:37 PDT"]
[Termination "Mackster23 won by checkmate"]

1. e4 {[%clk 0:03:00.9]} 1... c5 {[%clk 0:02:59.9]} 2. Nf3 {[%clk 0:03:00.4]}
2... d6 {[%clk 0:03:00.2]} 3. d4 {[%clk 0:03:00.4]} 3... cxd4 {[%clk 0:03:00.6]}
4. Nxd4 {[%clk 0:03:01.3]} 4... Nf6 {[%clk 0:03:00.9]} 5. Nc3 {[%clk 0:03:01.6]}
5... Nc6 {[%clk 0:03:01.2]} 6. Bg5 {[%clk 0:03:01.4]} 6... e6 {[%clk 0:03:01.3]}
7. Qd2 {[%clk 0:03:00.2]} 7... a6 {[%clk 0:02:59.4]} 8. O-O-O {[%clk 0:03:00.1]}
8... Bd7 {[%clk 0:02:59.8]} 9. Kb1 {[%clk 0:02:58.8]} 9... h6 {[%clk 0:02:50.4]}
10. Bh4 {[%clk 0:02:48.4]} 10... Nxe4 {[%clk 0:02:46.6]} 11. Nxe4 {[%clk
0:02:47.7]} 11... Qxh4 {[%clk 0:02:46.2]} 12. Nxd6+ {[%clk 0:02:15.6]} 12...
Bxd6 {[%clk 0:02:44.6]} 13. Nf3 {[%clk 0:02:16.1]} 13... Qe7 {[%clk 0:02:30.1]}
14. Qxd6 {[%clk 0:02:15.7]} 14... Qxd6 {[%clk 0:02:31]} 15. Rxd6 {[%clk
0:02:15.5]} 15... Ke7 {[%clk 0:02:31.6]} 16. Rd2 {[%clk 0:02:13.8]} 16... g5
{[%clk 0:02:26.3]} 17. h4 {[%clk 0:02:01.6]} 17... g4 {[%clk 0:02:24.3]} 18. Nd4
{[%clk 0:02:01.5]} 18... Nxd4 {[%clk 0:02:24.6]} 19. Rxd4 {[%clk 0:02:02.3]}
19... f5 {[%clk 0:02:18.1]} 20. Bc4 {[%clk 0:01:57.5]} 20... Rad8 {[%clk
0:02:17.6]} 21. Rhd1 {[%clk 0:01:32]} 21... Bc8 {[%clk 0:02:17.4]} 22. Rxd8
{[%clk 0:01:03.4]} 22... Rxd8 {[%clk 0:02:18.3]} 23. Rxd8 {[%clk 0:01:03.4]}
23... Kxd8 {[%clk 0:02:18.6]} 24. f4 {[%clk 0:01:02.9]} 24... gxf3 {[%clk
0:02:18.1]} 25. gxf3 {[%clk 0:01:02.7]} 25... e5 {[%clk 0:02:18.4]} 26. Kc1
{[%clk 0:01:01.6]} 26... Kc7 {[%clk 0:02:17.3]} 27. Kd2 {[%clk 0:01:01.2]} 27...
Kd6 {[%clk 0:02:17.6]} 28. Ke3 {[%clk 0:01:01]} 28... f4+ {[%clk 0:02:18]} 29.
Ke4 {[%clk 0:00:52.7]} 29... Bd7 {[%clk 0:02:13.8]} 30. Bd5 {[%clk 0:00:36]}
30... b6 {[%clk 0:02:07.1]} 31. Bb7 {[%clk 0:00:28.2]} 31... a5 {[%clk
0:02:06.1]} 32. c3 {[%clk 0:00:26.9]} 32... Ke6 {[%clk 0:02:00.1]} 33. b4 {[%clk
0:00:20.7]} 33... axb4 {[%clk 0:01:55.5]} 34. cxb4 {[%clk 0:00:21.6]} 34... Ba4
{[%clk 0:01:39.9]} 35. Bc8+ {[%clk 0:00:17.4]} 35... Kf6 {[%clk 0:01:39.8]} 36.
Kd5 {[%clk 0:00:15.4]} 36... h5 {[%clk 0:01:34.9]} 37. Bb7 {[%clk 0:00:06.9]}
37... Kf5 {[%clk 0:01:28.2]} 38. Bc8+ {[%clk 0:00:07]} 38... Kf6 {[%clk
0:01:28.7]} 39. Bb7 {[%clk 0:00:07.6]} 39... Bd1 {[%clk 0:01:27.3]} 40. Kc4
{[%clk 0:00:07.9]} 40... Be2+ {[%clk 0:01:24.6]} 41. Kb3 {[%clk 0:00:05.9]}
41... b5 {[%clk 0:01:19.9]} 42. a4 {[%clk 0:00:05.6]} 42... Bd1+ {[%clk
0:01:20]} 43. Kc3 {[%clk 0:00:04]} 43... Bxa4 {[%clk 0:01:18.3]} 44. Bc6 {[%clk
0:00:04.4]} 44... Ke6 {[%clk 0:01:15]} 45. Kd2 {[%clk 0:00:02.9]} 45... Ke7
{[%clk 0:01:08.3]} 46. Kc3 {[%clk 0:00:01.9]} 46... Bd1 {[%clk 0:01:06.4]} 47.
Kd2 {[%clk 0:00:02.7]} 47... Ba4 {[%clk 0:01:04]} 48. Kc3 {[%clk 0:00:03]} 48...
Kd6 {[%clk 0:01:01.3]} 49. Be8 {[%clk 0:00:03]} 49... Bd1 {[%clk 0:01:01.6]} 50.
Bxh5 {[%clk 0:00:02.7]} 50... e4 {[%clk 0:01:02.1]} 51. Kd2 {[%clk 0:00:03.1]}
51... Bxf3 {[%clk 0:00:55.1]} 52. Bxf3 {[%clk 0:00:03.1]} 52... exf3 {[%clk
0:00:56]} 53. Ke1 {[%clk 0:00:02.9]} 53... Kd5 {[%clk 0:00:51.9]} 54. Kf2 {[%clk
0:00:03.4]} 54... Kc4 {[%clk 0:00:52]} 55. h5 {[%clk 0:00:02.9]} 55... Kxb4
{[%clk 0:00:52.6]} 56. h6 {[%clk 0:00:03.5]} 56... Ka3 {[%clk 0:00:52.8]} 57. h7
{[%clk 0:00:04]} 57... b4 {[%clk 0:00:53.7]} 58. h8=Q {[%clk 0:00:04.4]} 58...
b3 {[%clk 0:00:54.6]} 59. Qa8+ {[%clk 0:00:04.1]} 59... Kb2 {[%clk 0:00:53.1]}
60. Kxf3 {[%clk 0:00:04.5]} 60... Kc2 {[%clk 0:00:53.8]} 61. Qc6+ {[%clk
0:00:04.3]} 61... Kb1 {[%clk 0:00:53.2]} 62. Qe4+ {[%clk 0:00:04.6]} 62... Ka1
{[%clk 0:00:53.4]} 63. Qa4+ {[%clk 0:00:04.5]} 63... Kb2 {[%clk 0:00:53.9]} 64.
Kxf4 {[%clk 0:00:04.9]} 64... Kc2 {[%clk 0:00:53.3]} 65. Qc4+ {[%clk 0:00:05.1]}
65... Kb2 {[%clk 0:00:53.2]} 66. Ke3 {[%clk 0:00:05.2]} 66... Ka1 {[%clk
0:00:53.7]} 67. Qa4+ {[%clk 0:00:04.6]} 67... Kb2 {[%clk 0:00:53.3]} 68. Kd2
{[%clk 0:00:04.7]} 68... Kb1 {[%clk 0:00:51.3]} 69. Qxb3+ {[%clk 0:00:04.9]}
69... Ka1 {[%clk 0:00:52.2]} 70. Qb4 {[%clk 0:00:05.3]} 70... Ka2 {[%clk
0:00:50.8]} 71. Kc2 {[%clk 0:00:05.6]} 71... Ka1 {[%clk 0:00:50]} 72. Qb2#
{[%clk 0:00:06.3]} 1-0

[Event "Early-Titled-Tuesday-Blitz-April-23-2024"]
[Site "Chess.com"]
[Date "2024.04.23"]
[Round "8"]
[White "bescmelasti"]
[Black "RobertoJBM"]
[Result "1-0"]
[WhiteElo "2617"]
[BlackElo "2819"]
[TimeControl "180+1"]
[EndTime "9:32:41 PDT"]
[Termination "bescmelasti won on time"]

1. e4 {[%clk 0:03:00.9]} 1... c6 {[%clk 0:02:59.5]} 2. d4 {[%clk 0:03:00.2]}
2... d5 {[%clk 0:03:00.4]} 3. Nc3 {[%clk 0:03:00.6]} 3... dxe4 {[%clk
0:03:00.7]} 4. Nxe4 {[%clk 0:03:01.5]} 4... Nd7 {[%clk 0:03:01.2]} 5. Nf3 {[%clk
0:02:57.3]} 5... Ngf6 {[%clk 0:03:01.3]} 6. Nxf6+ {[%clk 0:02:57.5]} 6... Nxf6
{[%clk 0:03:02.2]} 7. Bd3 {[%clk 0:02:57.9]} 7... Bg4 {[%clk 0:02:59.7]} 8. c3
{[%clk 0:02:56.3]} 8... Qd5 {[%clk 0:02:59.4]} 9. Be2 {[%clk 0:02:54.2]} 9... e6
{[%clk 0:02:59.2]} 10. O-O {[%clk 0:02:53.2]} 10... Bd6 {[%clk 0:02:58.1]} 11.
h3 {[%clk 0:02:52.9]} 11... Bh5 {[%clk 0:02:57.9]} 12. c4 {[%clk 0:02:44.2]}
12... Qa5 {[%clk 0:02:55.9]} 13. Bd2 {[%clk 0:02:41.1]} 13... Bb4 {[%clk
0:02:49.5]} 14. Be3 {[%clk 0:02:34.4]} 14... Be7 {[%clk 0:02:31.9]} 15. Ne5
{[%clk 0:02:32.1]} 15... Bxe2 {[%clk 0:02:31.1]} 16. Qxe2 {[%clk 0:02:33]} 16...
O-O {[%clk 0:02:29.5]} 17. a3 {[%clk 0:02:26.1]} 17... Qc7 {[%clk 0:02:24.9]}
18. b4 {[%clk 0:02:25.3]} 18... a5 {[%clk 0:02:19.8]} 19. Bf4 {[%clk 0:02:15]}
19... Qd8 {[%clk 0:02:16.8]} 20. Qb2 {[%clk 0:02:06.9]} 20... axb4 {[%clk
0:01:59.9]} 21. axb4 {[%clk 0:02:07.8]} 21... Qb6 {[%clk 0:01:58]} 22. Nd3
{[%clk 0:01:57.8]} 22... Rfd8 {[%clk 0:01:54]} 23. Be3 {[%clk 0:01:55.7]} 23...
Qc7 {[%clk 0:01:52.1]} 24. b5 {[%clk 0:01:53.1]} 24... Rdc8 {[%clk 0:01:42.3]}
25. b6 {[%clk 0:01:47.8]} 25... Qd8 {[%clk 0:01:40.3]} 26. Bf4 {[%clk
0:01:21.3]} 26... Bd6 {[%clk 0:01:28.9]} 27. Bxd6 {[%clk 0:01:14.7]} 27... Qxd6
{[%clk 0:01:28.6]} 28. Nc5 {[%clk 0:01:15.6]} 28... Qe7 {[%clk 0:01:12.4]} 29.
Rxa8 {[%clk 0:01:11.8]} 29... Rxa8 {[%clk 0:01:12]} 30. Ra1 {[%clk 0:01:12.7]}
30... Rb8 {[%clk 0:01:08.1]} 31. Ra7 {[%clk 0:01:10.6]} 31... Ne8 {[%clk
0:01:06.5]} 32. Qa3 {[%clk 0:00:56.6]} 32... Qd8 {[%clk 0:00:33.1]} 33. Qb2
{[%clk 0:00:29.3]} 33... Nd6 {[%clk 0:00:31.2]} 34. Ra4 {[%clk 0:00:29.9]} 34...
h6 {[%clk 0:00:27.2]} 35. Nd3 {[%clk 0:00:15.9]} 35... Nf5 {[%clk 0:00:26]} 36.
c5 {[%clk 0:00:13]} 36... Qd5 {[%clk 0:00:20.5]} 37. g3 {[%clk 0:00:09.3]} 37...
f6 {[%clk 0:00:18.2]} 38. Nf4 {[%clk 0:00:09.2]} 38... Qd7 {[%clk 0:00:17.9]}
39. Kg2 {[%clk 0:00:03.6]} 39... Kf7 {[%clk 0:00:17.2]} 40. h4 {[%clk
0:00:03.8]} 40... g5 {[%clk 0:00:17.1]} 41. hxg5 {[%clk 0:00:03.8]} 41... hxg5
{[%clk 0:00:18]} 42. Ne2 {[%clk 0:00:04.4]} 42... Ne7 {[%clk 0:00:18.1]} 43. Qb3
{[%clk 0:00:04.2]} 43... Nd5 {[%clk 0:00:18.4]} 44. Ra7 {[%clk 0:00:04]} 44...
Re8 {[%clk 0:00:18.4]} 45. Qf3 {[%clk 0:00:04.3]} 45... Re7 {[%clk 0:00:18.1]}
46. Qh5+ {[%clk 0:00:04.5]} 46... Kg7 {[%clk 0:00:18.2]} 47. Ra8 {[%clk
0:00:05.1]} 47... Rf7 {[%clk 0:00:15.3]} 48. Rh8 {[%clk 0:00:04.7]} 48... Nf4+
{[%clk 0:00:11.9]} 49. gxf4 {[%clk 0:00:04.2]} 49... Qd5+ {[%clk 0:00:12]} 50.
Kg1 {[%clk 0:00:04.5]} 1-0

[Event "Early-Titled-Tuesday-Blitz-April-23-2024"]
[Site "Chess.com"]
[Date "2024.04.23"]
[Round "8"]
[White "hmatyi07"]
[Black "AccioChess"]
[Result "1/2-1/2"]
[WhiteElo "2310"]
[BlackElo "2436"]
[TimeControl "180+1"]
[EndTime "9:32:41 PDT"]
[Termination "Game drawn by repetition"]

1. e4 {[%clk 0:03:00.9]} 1... e6 {[%clk 0:02:06.2]} 2. d4 {[%clk 0:02:59.1]}
2... d5 {[%clk 0:02:04.2]} 3. exd5 {[%clk 0:02:58.8]} 3... exd5 {[%clk 0:02:04]}
4. Nf3 {[%clk 0:02:59.5]} 4... Nf6 {[%clk 0:02:01.7]} 5. Bd3 {[%clk 0:02:59.5]}
5... Bd6 {[%clk 0:02:01.1]} 6. Qe2+ {[%clk 0:02:58.8]} 6... Be6 {[%clk
0:01:57.9]} 7. c4 {[%clk 0:02:58.7]} 7... c6 {[%clk 0:01:52.2]} 8. c5 {[%clk
0:02:56.5]} 8... Bc7 {[%clk 0:01:50.9]} 9. Ng5 {[%clk 0:02:51.5]} 9... O-O
{[%clk 0:01:50.8]} 10. Nxe6 {[%clk 0:02:49.1]} 10... fxe6 {[%clk 0:01:51.7]} 11.
Qxe6+ {[%clk 0:02:46.6]} 11... Kh8 {[%clk 0:01:51.7]} 12. O-O {[%clk 0:02:42.5]}
12... Nbd7 {[%clk 0:01:50.7]} 13. Bg5 {[%clk 0:02:36.8]} 13... Qb8 {[%clk
0:01:35.9]} 14. h3 {[%clk 0:02:26.8]} 14... Bf4 {[%clk 0:01:35.4]} 15. Bxf4
{[%clk 0:02:09.7]} 15... Qxf4 {[%clk 0:01:34.7]} 16. Qe3 {[%clk 0:02:00.6]}
16... Qh4 {[%clk 0:01:34.2]} 17. Bc2 {[%clk 0:01:44.4]} 17... Rae8 {[%clk
0:01:33.1]} 18. Qd3 {[%clk 0:01:40]} 18... Re4 {[%clk 0:00:57.9]} 19. Qa3 {[%clk
0:01:36.5]} 19... Rxd4 {[%clk 0:00:54.6]} 20. Qxa7 {[%clk 0:01:34.5]} 20... Ne5
{[%clk 0:00:35.7]} 21. Qa3 {[%clk 0:01:21.7]} 21... Nc4 {[%clk 0:00:23.9]} 22.
Qc3 {[%clk 0:01:19.5]} 22... Nd7 {[%clk 0:00:13.1]} 23. b3 {[%clk 0:01:19]}
23... Nce5 {[%clk 0:00:09.1]} 24. Nd2 {[%clk 0:01:15.6]} 24... Qf4 {[%clk
0:00:06.4]} 25. Rad1 {[%clk 0:01:11.7]} 25... Nf6 {[%clk 0:00:05.4]} 26. Nb1
{[%clk 0:00:51.4]} 26... Rxd1 {[%clk 0:00:04.8]} 27. Rxd1 {[%clk 0:00:49.7]}
27... Ne4 {[%clk 0:00:04.8]} 28. Bxe4 {[%clk 0:00:49.3]} 28... dxe4 {[%clk
0:00:05]} 29. Qd2 {[%clk 0:00:46.7]} 29... Qf5 {[%clk 0:00:05.1]} 30. Nc3 {[%clk
0:00:45]} 30... Nd3 {[%clk 0:00:05.4]} 31. Nxe4 {[%clk 0:00:43.1]} 31... Nxc5
{[%clk 0:00:03.1]} 32. Nxc5 {[%clk 0:00:43]} 32... Qxc5 {[%clk 0:00:04]} 33. Qd6
{[%clk 0:00:42.5]} 33... Qxf2+ {[%clk 0:00:03.8]} 34. Kh1 {[%clk 0:00:42.4]}
34... h6 {[%clk 0:00:04.4]} 35. Qd7 {[%clk 0:00:42.8]} 35... Qxa2 {[%clk
0:00:03.8]} 36. Qxb7 {[%clk 0:00:42.3]} 36... Qc2 {[%clk 0:00:04]} 37. Rg1
{[%clk 0:00:39]} 37... Kh7 {[%clk 0:00:03.4]} 38. b4 {[%clk 0:00:39.4]} 38...
Rf5 {[%clk 0:00:03.1]} 39. Qe7 {[%clk 0:00:37.2]} 39... Rb5 {[%clk 0:00:03.1]}
40. Qd7 {[%clk 0:00:31.8]} 40... Rxb4 {[%clk 0:00:02.1]} 41. Rf1 {[%clk
0:00:31.8]} 41... Rb2 {[%clk 0:00:01.3]} 42. Qg4 {[%clk 0:00:28.3]} 42... Qg6
{[%clk 0:00:01.1]} 43. Qf3 {[%clk 0:00:23.2]} 43... Rc2 {[%clk 0:00:01.7]} 44.
Rd1 {[%clk 0:00:22.6]} 44... c5 {[%clk 0:00:02.3]} 45. Rd5 {[%clk 0:00:16.5]}
45... c4 {[%clk 0:00:02.7]} 46. Rd8 {[%clk 0:00:09.9]} 46... c3 {[%clk
0:00:02.8]} 47. Qa8 {[%clk 0:00:09.2]} 47... Rc1+ {[%clk 0:00:02]} 48. Kh2
{[%clk 0:00:09.3]} 48... Qf6 {[%clk 0:00:01.8]} 49. Rh8+ {[%clk 0:00:09.2]}
49... Kg6 {[%clk 0:00:02.1]} 50. Qe8+ {[%clk 0:00:09.8]} 50... Qf7 {[%clk
0:00:01.7]} 51. Qe4+ {[%clk 0:00:10.4]} 51... Qf5 {[%clk 0:00:02.2]} 52. Qe8+
{[%clk 0:00:10.3]} 52... Qf7 {[%clk 0:00:02.5]} 53. Qe4+ {[%clk 0:00:09.7]}
53... Qf5 {[%clk 0:00:03]} 54. Qe8+ {[%clk 0:00:09.8]} 54... Qf7 {[%clk
0:00:03.4]} 1/2-1/2

[Event "Early-Titled-Tuesday-Blitz-April-23-2024"]
[Site "Chess.com"]
[Date "2024.04.23"]
[Round "8"]
[White "artin10862"]
[Black "Witik"]
[Result "1-0"]
[WhiteElo "2931"]
[BlackElo "2766"]
[TimeControl "180+1"]
[EndTime "9:32:43 PDT"]
[Termination "artin10862 won on time"]

1. e4 {[%clk 0:03:00.9]} 1... c6 {[%clk 0:02:59.9]} 2. d4 {[%clk 0:02:57.4]}
2... d5 {[%clk 0:03:00.2]} 3. e5 {[%clk 0:02:58.1]} 3... c5 {[%clk 0:03:00.3]}
4. dxc5 {[%clk 0:02:57.9]} 4... e6 {[%clk 0:03:00.7]} 5. Nf3 {[%clk 0:02:55.8]}
5... Bxc5 {[%clk 0:02:58.3]} 6. a3 {[%clk 0:02:56.4]} 6... Nd7 {[%clk
0:02:44.3]} 7. b4 {[%clk 0:02:56.1]} 7... Be7 {[%clk 0:02:44.4]} 8. Bb2 {[%clk
0:02:56.2]} 8... a5 {[%clk 0:02:44.4]} 9. b5 {[%clk 0:02:45.4]} 9... Nh6 {[%clk
0:02:29.2]} 10. Nbd2 {[%clk 0:02:42.9]} 10... O-O {[%clk 0:02:28.2]} 11. c4
{[%clk 0:02:40.5]} 11... Nb6 {[%clk 0:02:17]} 12. Qc2 {[%clk 0:02:15.7]} 12...
Bd7 {[%clk 0:01:59.4]} 13. Bd3 {[%clk 0:02:15.1]} 13... dxc4 {[%clk 0:01:46.8]}
14. Bxh7+ {[%clk 0:02:00.3]} 14... Kh8 {[%clk 0:01:46.9]} 15. a4 {[%clk
0:02:00.7]} 15... Bb4 {[%clk 0:01:34.2]} 16. Bd4 {[%clk 0:01:54.9]} 16... Nd5
{[%clk 0:01:26.5]} 17. Be4 {[%clk 0:01:48.9]} 17... c3 {[%clk 0:01:20.2]} 18.
Nb3 {[%clk 0:01:41.5]} 18... Rc8 {[%clk 0:01:15]} 19. O-O {[%clk 0:01:39.3]}
19... Nf5 {[%clk 0:01:11.3]} 20. Rad1 {[%clk 0:01:33.1]} 20... Qe7 {[%clk
0:00:57.5]} 21. Rfe1 {[%clk 0:01:22.6]} 21... Rfd8 {[%clk 0:00:49.7]} 22. g3
{[%clk 0:01:22.4]} 22... Be8 {[%clk 0:00:47.2]} 23. h4 {[%clk 0:01:12.6]} 23...
Kg8 {[%clk 0:00:41.4]} 24. Rf1 {[%clk 0:01:00.3]} 24... Ba3 {[%clk 0:00:41.5]}
25. Qe2 {[%clk 0:00:57.3]} 25... Qb4 {[%clk 0:00:33.6]} 26. Qa2 {[%clk
0:00:40.6]} 26... Bb2 {[%clk 0:00:17.6]} 27. Na1 {[%clk 0:00:33.2]} 27... Rc4
{[%clk 0:00:13.5]} 28. Nc2 {[%clk 0:00:20.6]} 28... Qxa4 {[%clk 0:00:13.8]} 29.
Qb1 {[%clk 0:00:21.1]} 29... Bxb5 {[%clk 0:00:12.4]} 30. Rfe1 {[%clk 0:00:20.8]}
30... Nde7 {[%clk 0:00:10.1]} 31. g4 {[%clk 0:00:18]} 31... Nxd4 {[%clk
0:00:10.2]} 32. Ncxd4 {[%clk 0:00:18.9]} 32... Rcxd4 {[%clk 0:00:10.5]} 33. Nxd4
{[%clk 0:00:15.3]} 33... Rxd4 {[%clk 0:00:11.1]} 34. Rxd4 {[%clk 0:00:15.8]}
34... Qxd4 {[%clk 0:00:12]} 35. Rd1 {[%clk 0:00:16.5]} 35... Qb6 {[%clk
0:00:07.5]} 36. Rd6 {[%clk 0:00:16.2]} 36... Bc6 {[%clk 0:00:03.2]} 37. Qd1
{[%clk 0:00:16.4]} 37... Ng6 {[%clk 0:00:01.8]} 38. h5 {[%clk 0:00:15]} 38...
Kh7 {[%clk 0:00:02]} 39. hxg6+ {[%clk 0:00:15.1]} 39... fxg6 {[%clk 0:00:02.5]}
40. Bc2 {[%clk 0:00:14.1]} 40... Qc5 {[%clk 0:00:02.7]} 41. Qd3 {[%clk
0:00:14.1]} 41... Be8 {[%clk 0:00:02.2]} 42. Rxe6 {[%clk 0:00:12.3]} 42... Bf7
{[%clk 0:00:02.1]} 43. Rxg6 {[%clk 0:00:12.4]} 43... Kg8 {[%clk 0:00:01.7]} 44.
Rd6 {[%clk 0:00:09.9]} 44... Qxe5 {[%clk 0:00:01.9]} 45. Rd8+ {[%clk 0:00:10]}
45... Be8 {[%clk 0:00:02.2]} 46. Ba4 {[%clk 0:00:05.3]} 46... Qe1+ {[%clk
0:00:01.7]} 47. Kg2 {[%clk 0:00:05.6]} 1-0

[Event "Early-Titled-Tuesday-Blitz-April-23-2024"]
[Site "Chess.com"]
[Date "2024.04.23"]
[Round "8"]
[White "DanyKopy"]
[Black "IM_ArthurDW08"]
[Result "0-1"]
[WhiteElo "2560"]
[BlackElo "2735"]
[TimeControl "180+1"]
[EndTime "9:32:45 PDT"]
[Termination "IM_ArthurDW08 won by resignation"]

1. Nf3 {[%clk 0:03:00.9]} 1... c5 {[%clk 0:02:58.2]} 2. g3 {[%clk 0:02:57.4]}
2... h6 {[%clk 0:02:56.7]} 3. Bg2 {[%clk 0:02:57.2]} 3... g5 {[%clk 0:02:53.8]}
4. O-O {[%clk 0:02:55.8]} 4... Bg7 {[%clk 0:02:54.2]} 5. c4 {[%clk 0:02:53.5]}
5... Nc6 {[%clk 0:02:53.4]} 6. Nc3 {[%clk 0:02:48]} 6... Nf6 {[%clk 0:02:50.7]}
7. b3 {[%clk 0:02:47.6]} 7... e5 {[%clk 0:02:44.7]} 8. e3 {[%clk 0:02:37.9]}
8... O-O {[%clk 0:02:40]} 9. Bb2 {[%clk 0:02:37.7]} 9... d6 {[%clk 0:02:37.9]}
10. Nd5 {[%clk 0:02:33.4]} 10... Nxd5 {[%clk 0:02:33.6]} 11. cxd5 {[%clk
0:02:33]} 11... Ne7 {[%clk 0:02:14.8]} 12. d4 {[%clk 0:02:27.5]} 12... cxd4
{[%clk 0:01:57.8]} 13. exd4 {[%clk 0:02:26.4]} 13... e4 {[%clk 0:01:58.3]} 14.
Nd2 {[%clk 0:02:23.3]} 14... f5 {[%clk 0:01:58.4]} 15. Ba3 {[%clk 0:02:18.7]}
15... b5 {[%clk 0:01:50.2]} 16. Qe2 {[%clk 0:02:14.7]} 16... a6 {[%clk
0:01:45.8]} 17. Bb2 {[%clk 0:01:59.7]} 17... Nxd5 {[%clk 0:01:31.7]} 18. a4
{[%clk 0:01:58.4]} 18... Bd7 {[%clk 0:01:16.5]} 19. Rac1 {[%clk 0:01:33.1]}
19... Kh8 {[%clk 0:01:11.1]} 20. Ba3 {[%clk 0:01:10]} 20... Qb6 {[%clk
0:01:06.1]} 21. a5 {[%clk 0:01:05.8]} 21... Qxd4 {[%clk 0:00:58.6]} 22. Bxd6
{[%clk 0:01:01.3]} 22... Nc3 {[%clk 0:00:57.9]} 23. Rxc3 {[%clk 0:00:59.7]}
23... Qxd6 {[%clk 0:00:57.4]} 24. Rcc1 {[%clk 0:00:55.2]} 24... Qb4 {[%clk
0:00:46]} 25. Rc7 {[%clk 0:00:48.1]} 25... Qd6 {[%clk 0:00:42.2]} 26. Rcc1
{[%clk 0:00:43.6]} 26... Rac8 {[%clk 0:00:41]} 27. Rcd1 {[%clk 0:00:36.5]} 27...
Qe6 {[%clk 0:00:36.8]} 28. Bh3 {[%clk 0:00:25.7]} 28... Bc6 {[%clk 0:00:32.1]}
29. Rfe1 {[%clk 0:00:21.2]} 29... Qe5 {[%clk 0:00:28]} 30. Qe3 {[%clk
0:00:18.1]} 30... g4 {[%clk 0:00:12.2]} 31. Bg2 {[%clk 0:00:18]} 31... Qc3
{[%clk 0:00:10.3]} 32. Qb6 {[%clk 0:00:12.5]} 32... Bd4 {[%clk 0:00:10.1]} 33.
Nb1 {[%clk 0:00:09.6]} 33... Bxb6 {[%clk 0:00:07.6]} 34. Nxc3 {[%clk 0:00:10]}
34... Bxa5 {[%clk 0:00:08.5]} 35. Rc1 {[%clk 0:00:10.5]} 35... Bb7 {[%clk
0:00:07.8]} 36. Re3 {[%clk 0:00:10.1]} 36... Rxc3 {[%clk 0:00:07.8]} 37. Rexc3
{[%clk 0:00:10.1]} 37... Bxc3 {[%clk 0:00:08.7]} 38. Rxc3 {[%clk 0:00:10.7]}
38... Rc8 {[%clk 0:00:09.6]} 39. Rxc8+ {[%clk 0:00:09.8]} 39... Bxc8 {[%clk
0:00:10.5]} 40. Kf1 {[%clk 0:00:10.2]} 40... Be6 {[%clk 0:00:10.7]} 41. b4
{[%clk 0:00:10.1]} 41... Kg7 {[%clk 0:00:11.3]} 42. Ke1 {[%clk 0:00:10.5]} 42...
Kf6 {[%clk 0:00:11.7]} 43. Kd2 {[%clk 0:00:11.1]} 43... Ke5 {[%clk 0:00:12.3]}
44. Kc3 {[%clk 0:00:11.1]} 44... f4 {[%clk 0:00:12.7]} 45. Bf1 {[%clk
0:00:09.4]} 45... h5 {[%clk 0:00:11.1]} 46. Be2 {[%clk 0:00:09.2]} 46... Bd5
{[%clk 0:00:07.1]} 47. Bd1 {[%clk 0:00:09.2]} 47... e3 {[%clk 0:00:07.3]} 48.
fxe3 {[%clk 0:00:09.4]} 48... fxg3 {[%clk 0:00:05.4]} 49. hxg3 {[%clk
0:00:09.3]} 49... h4 {[%clk 0:00:06.3]} 50. Bxg4 {[%clk 0:00:08.9]} 50... hxg3
{[%clk 0:00:06.6]} 51. Bh3 {[%clk 0:00:09.4]} 51... g2 {[%clk 0:00:07]} 52. Bxg2
{[%clk 0:00:09.7]} 52... Bxg2 {[%clk 0:00:07.9]} 53. Kb3 {[%clk 0:00:07.9]}
53... Bd5+ {[%clk 0:00:07.9]} 54. Kc3 {[%clk 0:00:08.3]} 54... Ke4 {[%clk
0:00:08.6]} 55. Kd2 {[%clk 0:00:08.8]} 55... Bc4 {[%clk 0:00:09.1]} 56. Kc3
{[%clk 0:00:09.1]} 56... Kxe3 {[%clk 0:00:10]} 57. Kb2 {[%clk 0:00:09.3]} 57...
Kd4 {[%clk 0:00:10.9]} 58. Ka3 {[%clk 0:00:10.1]} 58... Bd5 {[%clk 0:00:11.8]}
59. Kb2 {[%clk 0:00:10.1]} 59... Kc4 {[%clk 0:00:12.7]} 60. Ka3 {[%clk 0:00:11]}
60... Bc6 {[%clk 0:00:12.9]} 61. Kb2 {[%clk 0:00:10.6]} 61... Kxb4 {[%clk
0:00:13.8]} 0-1